fUSD/lending_fUSD_20260226
["ID","MTS","AMOUNT","RATE_DAILY","PERIOD"]
[406695668,1772093432280,-500.0,8.725e-05,2]
[406695669,1772093432290,-500.0,8.725e-05,2]
[406695670,1772093432300,-500.0,8.725e-05,2]
[406695671,1772093432310,-500.0,8.725e-05,2]
[406695672,1772093432320,-500.0,8.725e-05,2]
[406695673,1772093432330,-500.0,8.725e-05,2]
[406695674,1772093432340,-500.0,8.725e-05,2]
[406695675,1772093432349,-500.0,8.725e-05,2]
[406695676,1772093432359,-500.0,8.725e-05,2]
[406695677,1772093432368,-500.0,8.725e-05,2]
[406695678,1772093432378,-500.0,8.725e-05,2]
[406695679,1772093432388,-500.0,8.725e-05,2]
[406695680,1772093432397,-500.0,8.725e-05,2]
[406695681,1772093432407,-500.0,8.725e-05,2]
[406695682,1772093432416,-500.0,8.725e-05,2]
[406695683,1772093432426,-500.0,8.725e-05,2]
[406695684,1772093432436,-500.0,8.725e-05,2]
[406695685,1772093432445,-494.47707353,8.725e-05,2]
[406695686,1772093432454,-500.0,8.725e-05,2]
[406695687,1772093432464,-500.0,8.725e-05,2]
[406695688,1772093432474,-500.0,8.725e-05,2]
[406695689,1772093432484,-500.0,8.725e-05,2]
[406695690,1772093432494,-500.0,8.725e-05,2]
[406695691,1772093432504,-500.0,8.725e-05,2]
[406695692,1772093432513,-500.0,8.725e-05,2]
[406695693,1772093432523,-500.0,8.725e-05,2]
[406695694,1772093432533,-500.0,8.725e-05,2]
[406695695,1772093432543,-500.0,8.725e-05,2]
[406695696,1772093432553,-500.0,8.725e-05,2]
[406695697,1772093432562,-500.0,8.725e-05,2]
[406695698,1772093432572,-500.0,8.725e-05,2]
[406695699,1772093432581,-500.0,8.725e-05,2]
[406695700,1772093432591,-500.0,8.725e-05,2]
[406695701,1772093432600,-500.0,8.725e-05,2]
[406695702,1772093432609,-500.0,8.725e-05,2]
[406695703,1772093432618,-500.0,8.725e-05,2]
[406695704,1772093432628,-500.0,8.725e-05,2]
[406695705,1772093432638,-500.0,8.725e-05,2]
[406695706,1772093432647,-500.0,8.725e-05,2]
[406695707,1772093432656,-500.0,8.725e-05,2]
[406695708,1772093432666,-500.0,8.725e-05,2]
[406695709,1772093432676,-349.44770735,8.725e-05,2]
[406695710,1772093432686,-500.0,8.725e-05,2]
[406695711,1772093432696,-500.0,8.725e-05,2]
[406695712,1772093432705,-500.0,8.725e-05,2]
[406695713,1772093432715,-500.0,8.725e-05,2]
[406695714,1772093432725,-634.94477074,8.725e-05,2]
[406695715,1772093432734,-500.0,8.725e-05,2]
[406695716,1772093432744,-500.0,8.725e-05,2]
[406695717,1772093432753,-500.0,8.725e-05,2]
[406695718,1772093432762,-15381.796665,8.726e-05,2]
[406695719,1772093432772,-38476.7225366,8.726e-05,2]
[406695720,1772093432781,-10500.9604771,8.726e-05,2]
[406695721,1772093432790,-51881.6214864,8.726e-05,2]
[406695722,1772093432800,-25667.2724564,8.726e-05,2]
[406695723,1772093432809,-73851.26012397,8.726e-05,2]
[406695724,1772093432823,-36691.36256053,8.726e-05,2]
[406695725,1772093432832,-103427.0281412,8.726e-05,2]
[406695726,1772093432841,-18374.28001987,8.727e-05,2]
[406695727,1772093432853,-94572.61386053,8.727e-05,2]
[406695728,1772093432863,-1487.0,8.728e-05,2]
[406695729,1772093432872,-343.0,8.751e-05,2]
[406695730,1772093432882,-29748.84,8.826e-05,2]
[406695731,1772093432895,-212.0,8.857e-05,2]
[406695732,1772093432904,-500.0,8.866e-05,2]
[406695733,1772093432913,-291.0,8.872e-05,2]
[406695734,1772093432923,-394.92107206,8.874e-05,2]
[406695735,1772093432933,-166.29,8.904e-05,2]
[406695736,1772093432943,-242.08,8.924e-05,2]
[406695737,1772093432952,-166.67,9.021e-05,2]
[406695738,1772093432964,-255.0,9.04e-05,2]
[406695739,1772093432974,-500.0,9.14e-05,2]
[406695740,1772093432983,-1000.0,9.247e-05,2]
[406695741,1772093432993,-2351.0,9.361e-05,2]
[406695742,1772093433002,-17641.39020373,9.38e-05,2]
[406695743,1772093433011,-500.0,9.414e-05,2]
[406695744,1772093433020,-151.0,9.448e-05,2]
[406695745,1772093433030,-151.0,9.448e-05,2]
[406695746,1772093433040,-151.0,9.448e-05,2]
[406695747,1772093433050,-151.0,9.448e-05,2]
[406695748,1772093433059,-151.0,9.448e-05,2]
[406695749,1772093433069,-151.0,9.448e-05,2]
[406695750,1772093433080,-151.0,9.478e-05,2]
[406695751,1772093433089,-373.19905658,9.478e-05,2]
[406695752,1772093433099,-693.3919763,9.478e-05,2]
[406695753,1772093433108,-309.29654756,9.478e-05,2]
[406695754,1772093433117,-500.0,9.478e-05,2]
[406695755,1772093433126,-500.0,9.478e-05,2]
[406695756,1772093433135,-500.0,9.478e-05,2]
[406695757,1772093433145,-500.0,9.478e-05,2]
[406695758,1772093433154,-500.0,9.478e-05,2]
[406695759,1772093433164,-500.0,9.478e-05,2]
[406695760,1772093433174,-500.0,9.478e-05,2]
[406695761,1772093433183,-500.0,9.478e-05,2]
[406695762,1772093433193,-500.0,9.478e-05,2]
[406695763,1772093433203,-500.0,9.478e-05,2]
[406695764,1772093433213,-500.0,9.478e-05,2]
[406695765,1772093433223,-719.04747942,9.533e-05,2]
[406695766,1772093433232,-176.566046,9.576e-05,2]
[406695767,1772093433241,-150.0,9.576e-05,2]
[406695768,1772093433251,-150.0,9.576e-05,2]
[406695769,1772093433260,-150.0,9.576e-05,2]
[406695770,1772093433270,-150.0,9.576e-05,2]
[406695771,1772093433279,-150.0,9.576e-05,2]
[406695772,1772093433289,-150.0,9.576e-05,2]
[406695773,1772093433299,-150.0,9.576e-05,2]
[406695774,1772093433308,-150.0,9.576e-05,2]
[406695775,1772093433319,-150.0,9.576e-05,2]
[406695776,1772093433329,-150.0,9.576e-05,2]
[406695777,1772093433339,-150.0,9.576e-05,2]
[406695778,1772093433349,-150.0,9.576e-05,2]
[406695779,1772093433358,-150.0,9.576e-05,2]
[406695780,1772093433368,-150.0,9.576e-05,2]
[406695781,1772093433378,-150.0,9.576e-05,2]
[406695782,1772093433388,-150.0,9.576e-05,2]
[406695783,1772093433398,-150.0,9.576e-05,2]
[406695784,1772093433408,-150.0,9.576e-05,2]
[406695785,1772093433417,-150.0,9.576e-05,2]
[406695786,1772093433530,-150.0,9.576e-05,2]
[406695787,1772093433540,-150.0,9.576e-05,2]
[406695788,1772093433550,-150.0,9.576e-05,2]
[406695789,1772093433559,-150.0,9.576e-05,2]
[406695790,1772093433569,-150.0,9.576e-05,2]
[406695791,1772093433579,-150.0,9.576e-05,2]
[406695792,1772093433588,-745.65223616,9.588e-05,2]
[406695793,1772093433597,-151.0,9.589e-05,2]
[406695794,1772093433607,-166.29,9.589e-05,2]
[406695795,1772093433616,-150.0,9.631e-05,2]
[406695796,1772093433625,-150.0,9.631e-05,2]
[406695797,1772093433635,-150.0,9.631e-05,2]
[406695798,1772093433644,-150.0,9.631e-05,2]
[406695799,1772093433653,-150.0,9.631e-05,2]
[406695800,1772093433662,-150.0,9.631e-05,2]
[406695801,1772093433671,-150.0,9.631e-05,2]
[406695802,1772093433680,-150.0,9.631e-05,2]
[406695803,1772093433690,-150.0,9.631e-05,2]
[406695804,1772093433699,-150.0,9.631e-05,2]
[406695805,1772093433708,-150.0,9.631e-05,2]
[406695806,1772093433718,-150.0,9.631e-05,2]
[406695807,1772093433727,-773.2413689,9.643e-05,2]
[406695808,1772093433737,-1036.32016175,9.67e-05,3]
[406695809,1772093433747,-4520.3,9.671e-05,2]
[406695810,1772093433757,-15381.796665,9.672e-05,2]
[406695811,1772093433766,-38476.7225366,9.672e-05,2]
[406695812,1772093433775,-10500.9604771,9.672e-05,2]
[406695813,1772093433785,-2943.75523712,9.672e-05,2]
[406695814,1772093434080,-48937.86624928,9.672e-05,2]
[406695815,1772093434090,-110542.6226845,9.672e-05,2]
[406695816,1772093434100,-103427.0281412,9.672e-05,2]
[406695817,1772093434110,-369.540161,9.672e-05,2]
[406695818,1772093434120,-369.540161,9.672e-05,2]
[406695819,1772093434130,-369.540161,9.672e-05,2]
[406695820,1772093434140,-369.540161,9.672e-05,2]
[406695821,1772093434150,-151.0,9.672e-05,2]
[406695822,1772093434159,-151.0,9.672e-05,2]
[406695823,1772093434169,-57487.68224861,9.673e-05,2]
[406695824,1772093434181,-1254.41808677,9.673e-05,2]
[406695838,1772093437807,-833.66172791,9.673e-05,2]
[406695957,1772093439664,-500.0,8.609e-05,2]
[406695958,1772093439674,-500.0,8.883e-05,2]
[406695959,1772093439683,-500.0,9.157e-05,2]
[406695960,1772093439692,-197.51858713,9.431e-05,2]
[406695961,1772093439703,-305.63222214,9.431e-05,2]
[406695962,1772093439713,-13084.68415286,9.673e-05,2]
[406695963,1772093439724,-262.632924,9.673e-05,2]
[406695964,1772093439738,-325.42295744,9.673e-05,2]
[406695972,1772093442530,-256.57605167,9.673e-05,2]
[406696655,1772094507272,152.91,4.691e-05,2]
[406696656,1772094507462,152.91,5.117e-05,2]
[406696657,1772094508011,152.91,5.543e-05,2]
[406696658,1772094508053,152.91,5.97e-05,2]
[406696659,1772094508122,152.91,6.396e-05,2]
[406696936,1772094631511,-152.91,6.823e-05,2]
[406696937,1772094631521,-152.91,7.249e-05,2]
[406696938,1772094631530,-152.91,7.675e-05,2]
[406696939,1772094631540,-250.0,8.03e-05,2]
[406696940,1772094631549,-111.81991355,8.102e-05,2]
[406696941,1772094631561,-41.09008645,8.102e-05,2]
[406696942,1772094631571,-152.91,8.528e-05,2]
[406696943,1772094631581,-1412.72718513,8.618e-05,2]
[406696944,1772094631593,-698.12281487,8.618e-05,2]
[406696945,1772094631605,-262.27671789,8.756e-05,2]
[406696946,1772094631619,-195.0,8.785e-05,2]
[406696947,1772094631629,-195.0,8.913e-05,2]
[406696948,1772094631640,-195.0,8.913e-05,2]
[406696949,1772094631649,-1600.0,8.952e-05,2]
[406696950,1772094631659,-210.12740303,9.068e-05,2]
[406696951,1772094631668,-182.619898,9.09e-05,2]
[406696952,1772094631678,-85.17614616,9.357e-05,2]
[406696953,1772094631690,-64.82385384,9.357e-05,2]
[406696954,1772094631699,-1200.0,9.357e-05,2]
[406696955,1772094631710,-733.68357101,9.358e-05,2]
[406696956,1772094631721,-1766.31642899,9.358e-05,2]
[406696957,1772094631736,-300.0,9.364e-05,2]
[406696958,1772094631751,-300.0,9.364e-05,2]
[406696959,1772094631761,-1115.2546032,9.365e-05,2]
[406696960,1772094631772,-150.0,9.394e-05,2]
[406696961,1772094631781,-158.38923528,9.394e-05,2]
[406696963,1772094631791,-150.0,9.394e-05,2]
[406696965,1772094631801,-150.0,9.394e-05,2]
[406696967,1772094631811,-68.66700149,9.394e-05,2]
[406696970,1772094631834,-81.33299851,9.394e-05,2]
[406696972,1772094631844,-150.0,9.394e-05,2]
[406696974,1772094631854,-150.0,9.394e-05,2]
[406696976,1772094631863,-150.0,9.394e-05,2]
[406696978,1772094631873,-150.0,9.394e-05,2]
[406696980,1772094631881,-150.0,9.394e-05,2]
[406696982,1772094631891,-150.0,9.394e-05,2]
[406696984,1772094631901,-150.0,9.404e-05,2]
[406696986,1772094631911,-12814.43606165,9.405e-05,2]
[406696987,1772094631923,-748.00966555,9.405e-05,2]
[406696989,1772094631935,-24507.02993537,9.405e-05,2]
[406696990,1772094631945,-150.0,9.412e-05,2]
[406696991,1772094631955,-209440.25223614,9.415e-05,2]
[406696993,1772094631965,-150.0,9.449e-05,2]
[406696994,1772094631975,-200.0,9.449e-05,2]
[406696995,1772094631985,-200.0,9.449e-05,2]
[406696996,1772094631994,-150.0,9.449e-05,2]
[406696997,1772094632004,-1000.0,9.457e-05,2]
[406696998,1772094632013,-500.0,9.457e-05,2]
[406696999,1772094632023,-500.0,9.457e-05,2]
[406697000,1772094632033,-455.94281269,9.457e-05,2]
[406697001,1772094632043,-500.0,9.457e-05,2]
[406697002,1772094632053,-282.86041218,9.457e-05,2]
[406697003,1772094632062,-537.71761035,9.457e-05,2]
[406697004,1772094632071,-500.0,9.457e-05,2]
[406697005,1772094632081,-500.0,9.457e-05,2]
[406697006,1772094632091,-500.0,9.457e-05,2]
[406697007,1772094632101,-500.0,9.457e-05,2]
[406697008,1772094632117,-191.07821722,9.457e-05,2]
[406697009,1772094632127,-500.0,9.457e-05,2]
[406697010,1772094632136,-500.0,9.457e-05,2]
[406697011,1772094632146,-500.0,9.457e-05,2]
[406697012,1772094632156,-500.0,9.457e-05,2]
[406697013,1772094632166,-500.0,9.457e-05,2]
[406697014,1772094632175,-500.0,9.457e-05,2]
[406697015,1772094632184,-500.0,9.457e-05,2]
[406697016,1772094632194,-500.0,9.457e-05,2]
[406697017,1772094632203,-500.0,9.457e-05,2]
[406697018,1772094632213,-500.0,9.457e-05,2]
[406697019,1772094632223,-500.0,9.457e-05,2]
[406697020,1772094632237,-500.0,9.457e-05,2]
[406697021,1772094632246,-500.0,9.457e-05,2]
[406697022,1772094632256,-500.0,9.457e-05,2]
[406697023,1772094632265,-500.0,9.457e-05,2]
[406697024,1772094632276,-500.0,9.457e-05,2]
[406697025,1772094632286,-500.0,9.457e-05,2]
[406697026,1772094632295,-500.0,9.457e-05,2]
[406697027,1772094632307,-500.0,9.457e-05,2]
[406697028,1772094632316,-500.0,9.457e-05,2]
[406697029,1772094632325,-500.0,9.457e-05,2]
[406697030,1772094632334,-500.0,9.457e-05,2]
[406697031,1772094632344,-500.0,9.457e-05,2]
[406697032,1772094632353,-500.0,9.457e-05,2]
[406697033,1772094632364,-500.0,9.457e-05,2]
[406697034,1772094632373,-500.0,9.457e-05,2]
[406697035,1772094632383,-500.0,9.457e-05,2]
[406697036,1772094632391,-500.0,9.457e-05,2]
[406697037,1772094632402,-500.0,9.457e-05,2]
[406697038,1772094632412,-500.0,9.457e-05,2]
[406697039,1772094632421,-500.0,9.457e-05,2]
[406697040,1772094632431,-500.0,9.457e-05,2]
[406697041,1772094632441,-500.0,9.457e-05,2]
[406697042,1772094632450,-500.0,9.457e-05,2]
[406697043,1772094632459,-500.0,9.457e-05,2]
[406697044,1772094632469,-500.0,9.457e-05,2]
[406697045,1772094632478,-500.0,9.457e-05,2]
[406697046,1772094632488,-500.0,9.457e-05,2]
[406697047,1772094632498,-500.0,9.457e-05,2]
[406697048,1772094632507,-500.0,9.457e-05,2]
[406697049,1772094632517,-500.0,9.457e-05,2]
[406697050,1772094632527,-500.0,9.457e-05,2]
[406697051,1772094632537,-500.0,9.457e-05,2]
[406697052,1772094632547,-500.0,9.457e-05,2]
[406697053,1772094632556,-500.0,9.457e-05,2]
[406697054,1772094632566,-500.0,9.457e-05,2]
[406697055,1772094632576,-500.0,9.457e-05,2]
[406697056,1772094632586,-500.0,9.457e-05,2]
[406697057,1772094632596,-500.0,9.457e-05,2]
[406697058,1772094632607,-500.0,9.457e-05,2]
[406697059,1772094632617,-500.0,9.457e-05,2]
[406697060,1772094632627,-500.0,9.457e-05,2]
[406697061,1772094632636,-500.0,9.457e-05,2]
[406697062,1772094632646,-500.0,9.457e-05,2]
[406697063,1772094632656,-500.0,9.457e-05,2]
[406697064,1772094632665,-500.0,9.457e-05,2]
[406697065,1772094632675,-500.0,9.457e-05,2]
[406697066,1772094632684,-500.0,9.457e-05,2]
[406697067,1772094632694,-500.0,9.457e-05,2]
[406697068,1772094632704,-179.34088516,9.457e-05,2]
[406697069,1772094632713,-500.0,9.457e-05,2]
[406697070,1772094632723,-500.0,9.457e-05,2]
[406697071,1772094632733,-500.0,9.457e-05,2]
[406697072,1772094632742,-500.0,9.457e-05,2]
[406697073,1772094632751,-500.0,9.457e-05,2]
[406697074,1772094632760,-500.0,9.457e-05,2]
[406697075,1772094632770,-500.0,9.457e-05,2]
[406697076,1772094632779,-500.0,9.457e-05,2]
[406697077,1772094632789,-270.13954871,9.457e-05,2]
[406697078,1772094632799,-500.0,9.457e-05,2]
[406697079,1772094632809,-500.0,9.457e-05,2]
[406697080,1772094632819,-500.0,9.457e-05,2]
[406697081,1772094632829,-500.0,9.457e-05,2]
[406697082,1772094632838,-500.0,9.457e-05,2]
[406697083,1772094632847,-500.0,9.457e-05,2]
[406697084,1772094632857,-500.0,9.457e-05,2]
[406697085,1772094632867,-500.0,9.457e-05,2]
[406697086,1772094632876,-500.0,9.457e-05,2]
[406697087,1772094632885,-500.0,9.457e-05,2]
[406697088,1772094632895,-500.0,9.457e-05,2]
[406697089,1772094632905,-500.0,9.457e-05,2]
[406697090,1772094632915,-500.0,9.457e-05,2]
[406697091,1772094632925,-500.0,9.457e-05,2]
[406697092,1772094632935,-500.0,9.457e-05,2]
[406697093,1772094632944,-500.0,9.457e-05,2]
[406697094,1772094632954,-500.0,9.457e-05,2]
[406697095,1772094632963,-500.0,9.457e-05,2]
[406697096,1772094632972,-1876940.01902685,9.458e-05,2]
[406697097,1772094632998,-123059.98097315,9.458e-05,2]
[406697098,1772094633008,-1014.0,9.46e-05,2]
[406697099,1772094633018,-150.0,9.467e-05,2]
[406697100,1772094633027,-4133.1798,9.468e-05,2]
[406697101,1772094633036,-89535.6773,9.468e-05,2]
[406697102,1772094633046,-1349.0,9.479e-05,2]
[406697103,1772094633056,-195.0,9.479e-05,2]
[406697104,1772094633066,-195.0,9.479e-05,2]
[406697105,1772094633075,-250.0,9.521e-05,2]
[406697106,1772094633085,-999.99,9.541e-05,2]
[406697107,1772094633095,-208.88429413,9.541e-05,2]
[406697108,1772094633105,-1017.083,9.557e-05,2]
[406697109,1772094633116,-150.99,9.558e-05,2]
[406697110,1772094633125,-150.99,9.558e-05,2]
[406697111,1772094633135,-299.99,9.558e-05,2]
[406697112,1772094633145,-9999.99,9.558e-05,2]
[406697113,1772094633155,-186.55776369,9.562e-05,2]
[406697114,1772094633164,-151.0,9.562e-05,2]
[406697115,1772094633174,-693.3919763,9.562e-05,2]
[406697116,1772094633184,-500.0,9.562e-05,2]
[406697117,1772094633193,-500.0,9.562e-05,2]
[406697118,1772094633204,-500.0,9.562e-05,2]
[406697119,1772094633214,-500.0,9.562e-05,2]
[406697120,1772094633224,-500.0,9.562e-05,2]
[406697121,1772094633236,-500.0,9.562e-05,2]
[406697122,1772094633246,-500.0,9.562e-05,2]
[406697123,1772094633256,-500.0,9.562e-05,2]
[406697124,1772094633266,-500.0,9.562e-05,2]
[406697125,1772094633277,-500.0,9.562e-05,2]
[406697126,1772094633288,-500.0,9.562e-05,2]
[406697127,1772094633298,-1055548.54249725,9.568e-05,2]
[406697128,1772094633313,-39042.61612614,9.568e-05,2]
[406697129,1772094633325,-3155.26294073,9.568e-05,2]
[406697130,1772094633448,-9119.43030791,9.568e-05,2]
[406697131,1772094633465,-927.69623708,9.568e-05,2]
[406697140,1772094637617,-6372.53148846,9.568e-05,2]
[406697141,1772094637648,-1023.66848847,9.568e-05,2]
[406697142,1772094637767,-636.88586202,9.568e-05,2]
[406697143,1772094637885,-8833.54281752,9.568e-05,2]
[406697144,1772094637898,-11381.0939055,9.568e-05,2]
[406697350,1772094640186,-153.20566341,8.756e-05,2]
[406697352,1772094640196,-363958.72932892,9.568e-05,2]
[406697354,1772094640206,-21482.73186882,9.568e-05,2]
[406697356,1772094640215,-3392.22513979,9.568e-05,2]
[406697358,1772094640224,-32883.6844,9.573e-05,2]
[406697360,1772094640234,-1000.0,9.573e-05,2]
[406697362,1772094640246,-350.0,9.594e-05,2]
[406697364,1772094640256,-719.04747942,9.617e-05,2]
[406697366,1772094640265,-350.0,9.646e-05,2]
[406697368,1772094640274,-145779.5353448,9.668e-05,2]
[406697370,1772094640285,-26929.2596008,9.668e-05,2]
[406697372,1772094640295,-151.0,9.668e-05,2]
[406697374,1772094640304,-151.0,9.668e-05,2]
[406697376,1772094640315,-5250.4802385,9.668e-05,2]
[406697378,1772094640324,-81212.1220855,9.668e-05,2]
[406697380,1772094640333,-204.036797,9.668e-05,2]
[406697382,1772094640344,-204.036797,9.668e-05,2]
[406697384,1772094640353,-204.036797,9.668e-05,2]
[406697386,1772094640363,-204.036797,9.668e-05,2]
[406697388,1772094640373,-295.632129,9.668e-05,2]
[406697390,1772094640382,-295.632129,9.668e-05,2]
[406697392,1772094640392,-295.632129,9.668e-05,2]
[406697394,1772094640401,-295.632129,9.668e-05,2]
[406697396,1772094640410,-151.0,9.668e-05,2]
[406697398,1772094640421,-151.0,9.668e-05,2]
[406697400,1772094640430,-151.026065,9.668e-05,2]
[406697402,1772094640439,-5503.1393286,9.668e-05,2]
[406697404,1772094640449,-51713.5140706,9.668e-05,2]
[406697406,1772094640458,-745.65223616,9.672e-05,2]
[406697408,1772094640467,-137550.62068451,9.69e-05,2]
[406697410,1772094640476,-204.036797,9.69e-05,2]
[406697412,1772094640486,-204.036797,9.69e-05,2]
[406697414,1772094640495,-204.036797,9.69e-05,2]
[406697416,1772094640505,-204.036797,9.69e-05,2]
[406697418,1772094640515,-5731.0,9.692e-05,2]
[406697420,1772094640524,-166.67,9.709e-05,2]
[406697422,1772094640534,-773.2413689,9.727e-05,2]
[406697424,1772094640543,-204.83,9.762e-05,2]
[406697426,1772094640553,-119461.12378115,9.781e-05,7]
[406697428,1772094640563,-151.0,9.781e-05,2]
[406697430,1772094640573,-234.465008,9.781e-05,2]
[406697432,1772094640585,-295.632129,9.781e-05,2]
[406697449,1772094640727,-295.632129,9.781e-05,2]
[406697451,1772094640740,-295.632129,9.781e-05,2]
[406697453,1772094640749,-295.632129,9.781e-05,2]
[406697455,1772094640759,-151.0,9.781e-05,2]
[406697457,1772094640768,-151.0,9.781e-05,2]
[406697459,1772094640777,-801.85129955,9.782e-05,2]
[406697460,1772094640786,-205.0,9.8e-05,2]
[406697461,1772094640795,-831.51979763,9.837e-05,2]
[406697462,1772094640804,-862.28603014,9.892e-05,2]
[406697463,1772094640813,-894.19061326,9.947e-05,2]
[406697464,1772094640822,-27963.56147862,9.95e-05,2]
[406697465,1772094640830,-155.485,9.999e-05,2]
[406697466,1772094640844,-41988.43206138,0.0001,2]
[406697467,1772094640864,-224.77977962,0.0001,2]
[406697468,1772094640878,-28019.0,0.0001,2]
[406697469,1772094640887,-752.80088871,0.0001,2]
[406697470,1772094640896,-1000.0,0.0001,2]
[406697471,1772094640904,-1000.0,0.0001,2]
[406697472,1772094640913,-1000.0,0.0001,2]
[406697473,1772094640923,-1000.0,0.0001,2]
[406697474,1772094640932,-1000.0,0.0001,2]
[406697476,1772094640941,-1000.0,0.0001,2]
[406697478,1772094640950,-755.48875966,0.0001,2]
[406697480,1772094640960,-1176.11206,0.0001,2]
[406697482,1772094640969,-500.0,0.0001,2]
[406697484,1772094640978,-500.0,0.0001,2]
[406697486,1772094640987,-500.0,0.0001,2]
[406697488,1772094640997,-500.0,0.0001,2]
[406697490,1772094641006,-500.0,0.0001,2]
[406697492,1772094641015,-500.0,0.0001,2]
[406697494,1772094641025,-151.0,0.0001,2]
[406697496,1772094641034,-502.62170178,0.0001,2]
[406697497,1772094641044,-151.0,0.0001,2]
[406697499,1772094641054,-151.0,0.0001,2]
[406697501,1772094641063,-346.38147435,0.0001,2]
[406697503,1772094641072,-500.0,0.0001,2]
[406697506,1772094641082,-151.0,0.0001,2]
[406697507,1772094641091,-500.0,0.0001,2]
[406697510,1772094641100,-151.0,0.0001,2]
[406697512,1772094641111,-500.0,0.0001,2]
[406697514,1772094641120,-151.0,0.0001,2]
[406697515,1772094641129,-500.0,0.0001,2]
[406697518,1772094641138,-151.0,0.0001,2]
[406697520,1772094641148,-500.0,0.0001,2]
[406697522,1772094641157,-151.0,0.0001,2]
[406697523,1772094641166,-553.9571256,0.0001,2]
[406697525,1772094641176,-151.0,0.0001,2]
[406697527,1772094641185,-151.0,0.0001,2]
[406697529,1772094641194,-151.0,0.0001,2]
[406697531,1772094641203,-151.0,0.0001,2]
[406697533,1772094641212,-151.0,0.0001,2]
[406697535,1772094641222,-151.0,0.0001,2]
[406697537,1772094641231,-151.0,0.0001,2]
[406697539,1772094641244,-203.20755131,0.0001,2]
[406697541,1772094641254,-151.0,0.0001,2]
[406697543,1772094641263,-151.0,0.0001,2]
[406697545,1772094641274,-151.0,0.0001,2]
[406697547,1772094641283,-151.0,0.0001,2]
[406697549,1772094641292,-151.0,0.0001,2]
[406697551,1772094641302,-151.0,0.0001,2]
[406697553,1772094641311,-151.0,0.0001,2]
[406697555,1772094641322,-151.0,0.0001,2]
[406697558,1772094641331,-151.0,0.0001,2]
[406697559,1772094641340,-151.0,0.0001,2]
[406697562,1772094641349,-151.0,0.0001,2]
[406697563,1772094641359,-151.0,0.0001,2]
[406697565,1772094641368,-151.0,0.0001,2]
[406697568,1772094641379,-151.0,0.0001,2]
[406697570,1772094641389,-151.0,0.0001,2]
[406697572,1772094641398,-151.0,0.0001,2]
[406697574,1772094641408,-151.0,0.0001,2]
[406697576,1772094641417,-151.0,0.0001,2]
[406697577,1772094641426,-151.0,0.0001,2]
[406697579,1772094641435,-151.0,0.0001,2]
[406697581,1772094641445,-151.0,0.0001,2]
[406697583,1772094641455,-151.0,0.0001,2]
[406697586,1772094641464,-151.0,0.0001,2]
[406697588,1772094641475,-151.0,0.0001,2]
[406697590,1772094641485,-151.0,0.0001,2]
[406697592,1772094641495,-151.0,0.0001,2]
[406697594,1772094641505,-151.0,0.0001,2]
[406697596,1772094641514,-151.0,0.0001,2]
[406697598,1772094641523,-151.0,0.0001,2]
[406697600,1772094641533,-151.0,0.0001,2]
[406697601,1772094641542,-151.0,0.0001,2]
[406697604,1772094641552,-151.0,0.0001,2]
[406697605,1772094641561,-151.0,0.0001,2]
[406697607,1772094641571,-151.0,0.0001,2]
[406697610,1772094641580,-151.0,0.0001,2]
[406697612,1772094641590,-151.0,0.0001,2]
[406697614,1772094641599,-1186.11241235,0.0001,2]
[406697615,1772094641608,-1070.62307231,0.0001,2]
[406697618,1772094641618,-1070.62307231,0.0001,2]
[406697619,1772094641627,-1600.0,0.00010071,2]
[406697621,1772094641636,-151.10043624,0.0001011,2]
[406697623,1772094641645,-350.0,0.00010139,2]
[406697625,1772094641655,-1176.11207,0.000102,2]
[406697627,1772094641664,-1258.9,0.00010225,2]
[406697629,1772094641673,-1000.0,0.00010274,2]
[406697632,1772094641684,-166.29,0.00010274,2]